fUSD/lending_fUSD_20250216
["ID","MTS","AMOUNT","RATE_DAILY","PERIOD"]
[353257732,1739719868983,-887.17,0.00011452,2]
[353257733,1739719868992,-500.0,0.00011452,2]
[353257734,1739719869002,-801.39237,0.00011452,2]
[353257735,1739719869012,-658.15,0.00011452,2]
[353257736,1739719869021,-500.0,0.00011452,2]
[353257737,1739719869030,-500.0,0.00011452,2]
[353257738,1739719869040,-500.0,0.00011452,2]
[353257739,1739719869049,-723.28,0.00011452,2]
[353257740,1739719869059,-500.0,0.00011452,2]
[353257741,1739719869068,-615.74,0.00011452,2]
[353257742,1739719869077,-1036.138115,0.00011452,2]
[353257743,1739719869087,-500.0,0.00011452,2]
[353257744,1739719869096,-500.0,0.00011452,2]
[353257745,1739719869106,-500.0,0.00011452,2]
[353257746,1739719869115,-500.0,0.00011452,2]
[353257747,1739719869126,-500.0,0.00011452,2]
[353257748,1739719869136,-500.0,0.00011452,2]
[353257749,1739719869145,-500.0,0.00011452,2]
[353257750,1739719869155,-1142.85,0.00011452,2]
[353257751,1739719869166,-500.0,0.00011452,2]
[353257752,1739719869175,-500.0,0.00011452,2]
[353257753,1739719869185,-572.02,0.00011452,2]
[353257754,1739719869194,-500.0,0.00011452,2]
[353257755,1739719869204,-500.0,0.00011452,2]
[353257756,1739719869215,-564.69,0.00011452,2]
[353257757,1739719869227,-551.48,0.00011452,2]
[353257758,1739719869236,-676.69,0.00011452,2]
[353257759,1739719869247,-500.0,0.00011452,2]
[353257760,1739719869257,-615.32,0.00011452,2]
[353257761,1739719869266,-500.0,0.00011452,2]
[353257762,1739719869276,-594.63,0.00011452,2]
[353257763,1739719869286,-647.43,0.00011452,2]
[353257764,1739719869297,-605.03,0.00011452,2]
[353257765,1739719869306,-737.6,0.00011452,2]
[353257766,1739719869316,-500.0,0.00011452,2]
[353257767,1739719869325,-677.67,0.00011452,2]
[353257768,1739719869334,-856.01,0.00011452,2]
[353257769,1739719869343,-580.88,0.00011452,2]
[353257770,1739719869353,-547.28,0.00011452,2]
[353257771,1739719869362,-659.59,0.00011452,2]
[353257772,1739719869372,-500.0,0.00011452,2]
[353257773,1739719869382,-500.0,0.00011452,2]
[353257774,1739719869391,-500.0,0.00011452,2]
[353257775,1739719869401,-679.65,0.00011452,2]
[353257776,1739719869411,-635.55,0.00011452,2]
[353257777,1739719869421,-1531.02,0.00011452,2]
[353257778,1739719869430,-500.0,0.00011452,2]
[353257779,1739719869439,-500.0,0.00011452,2]
[353257780,1739719869448,-710.02,0.00011452,2]
[353257781,1739719869457,-552.24,0.00011452,2]
[353257782,1739719869466,-609.92,0.00011452,2]
[353257783,1739719869476,-775.33,0.00011452,2]
[353257784,1739719869486,-927.32,0.00011452,2]
[353257785,1739719869495,-833.8,0.00011452,2]
[353257786,1739719869504,-713.28,0.00011452,2]
[353257787,1739719869514,-2162.44,0.00011452,2]
[353257788,1739719869525,-500.0,0.00011452,2]
[353257789,1739719869534,-661.28,0.00011452,2]
[353257790,1739719869544,-763.65,0.00011452,2]
[353257791,1739719869554,-500.0,0.00011452,2]
[353257792,1739719869564,-696.46,0.00011452,2]
[353257793,1739719869573,-500.0,0.00011452,2]
[353257794,1739719869582,-500.0,0.00011452,2]
[353257795,1739719869592,-1016.22,0.00011452,2]
[353257796,1739719869601,-840.07,0.00011452,2]
[353257797,1739719869611,-500.0,0.00011452,2]
[353257798,1739719869622,-997.87,0.00011452,2]
[353257799,1739719869631,-1941.86,0.00011452,2]
[353257800,1739719869641,-500.0,0.00011452,2]
[353257801,1739719869650,-500.0,0.00011452,2]
[353257802,1739719869661,-960.55,0.00011452,2]
[353257803,1739719869670,-500.0,0.00011452,2]
[353257804,1739719869680,-1316.29,0.00011452,2]
[353257805,1739719869689,-628.04,0.00011452,2]
[353257806,1739719869699,-967.16,0.00011452,2]
[353257807,1739719869711,-1082.77,0.00011452,2]
[353257808,1739719869720,-537.42,0.00011452,2]
[353257809,1739719869731,-1148.65,0.00011452,2]
[353257810,1739719869740,-522.8,0.00011452,2]
[353257811,1739719869750,-500.0,0.00011452,2]
[353257812,1739719869761,-1133.71,0.00011452,2]
[353257813,1739719869771,-500.0,0.00011452,2]
[353257814,1739719869781,-1545.2,0.00011452,2]
[353257815,1739719869791,-1208.7,0.00011452,2]
[353257816,1739719869801,-3059.32,0.00011452,2]
[353257817,1739719869811,-500.0,0.00011452,2]
[353257818,1739719869821,-575.61,0.00011452,2]
[353257819,1739719869831,-1330.36,0.00011452,2]
[353257820,1739719869841,-1260.47,0.00011452,2]
[353257821,1739719869851,-657.52,0.00011452,2]
[353257822,1739719869862,-656.43,0.00011452,2]
[353257823,1739719869872,-533.75,0.00011452,2]
[353257824,1739719869883,-500.0,0.00011452,2]
[353257825,1739719869892,-1280.71,0.00011452,2]
[353257826,1739719869902,-1667.11,0.00011452,2]
[353257827,1739719869912,-1761.78,0.00011452,2]
[353257828,1739719869923,-655.49,0.00011452,2]
[353257829,1739719869933,-765.75,0.00011452,2]
[353257830,1739719869943,-954.99,0.00011452,2]
[353257831,1739719869953,-510.92,0.00011452,2]
[353257832,1739719869964,-1071.72,0.00011452,2]
[353257833,1739719869974,-898.62,0.00011452,2]
[353257834,1739719869984,-963.74,0.00011452,2]
[353257835,1739719869994,-500.0,0.00011452,2]
[353257836,1739719870004,-1432.53,0.00011452,2]
[353257837,1739719870014,-1288.05,0.00011452,2]
[353257838,1739719870024,-1131.27,0.00011452,2]
[353257839,1739719870034,-1497.56,0.00011452,2]
[353257840,1739719870044,-938.67,0.00011452,2]
[353257841,1739719870054,-922.59,0.00011452,2]
[353257842,1739719870065,-1297.94,0.00011452,2]
[353257843,1739719870074,-1275.03,0.00011452,2]
[353257844,1739719870084,-1207.44,0.00011452,2]
[353257845,1739719870095,-857.03,0.00011452,2]
[353257846,1739719870107,-1139.27,0.00011452,2]
[353257847,1739719870117,-2609.71,0.00011452,2]
[353257848,1739719870126,-2357.36,0.00011452,2]
[353257849,1739719870136,-948.68,0.00011452,2]
[353257850,1739719870146,-745.27,0.00011452,2]
[353257851,1739719870156,-1322.5,0.00011452,2]
[353257852,1739719870167,-1014.65,0.00011452,2]
[353257853,1739719870328,-732.97,0.00011452,2]
[353257854,1739719870349,-3965.85,0.00011452,2]
[353257855,1739719870360,-1054.68,0.00011452,2]
[353257856,1739719870370,-1029.25,0.00011452,2]
[353257857,1739719870380,-647.83,0.00011452,2]
[353257858,1739719870390,-500.0,0.00011452,2]
[353257859,1739719870399,-1129.52,0.00011452,2]
[353257860,1739719870409,-1589.44,0.00011452,2]
[353257861,1739719870419,-856.52,0.00011452,2]
[353257862,1739719870428,-1397.84,0.00011452,2]
[353257863,1739719870437,-2006.41,0.00011452,2]
[353257864,1739719870449,-1495.83,0.00011452,2]
[353257865,1739719870459,-2283.55,0.00011452,2]
[353257866,1739719870468,-1573.52,0.00011452,2]
[353257867,1739719870478,-950.54,0.00011452,2]
[353257868,1739719870489,-1359.93,0.00011452,2]
[353257869,1739719870499,-629.85,0.00011452,2]
[353257870,1739719870508,-500.0,0.00011452,2]
[353257871,1739719870518,-1723.99,0.00011452,2]
[353257872,1739719870528,-937.03,0.00011452,2]
[353257873,1739719870537,-153.16253,0.00011452,2]
[353257874,1739719870547,-1047.35,0.00011452,2]
[353257875,1739719870556,-835.09,0.00011452,2]
[353257876,1739719870565,-989.7,0.00011452,2]
[353257877,1739719870575,-1680.52,0.00011452,2]
[353257878,1739719870585,-502.61,0.00011452,2]
[353257879,1739719870594,-685.52,0.00011452,2]
[353257880,1739719870604,-1596.94,0.00011452,2]
[353257881,1739719870613,-2108.61,0.00011452,2]
[353257882,1739719870623,-500.0,0.00011452,2]
[353257883,1739719870632,-1064.74,0.00011452,2]
[353257884,1739719870641,-500.0,0.00011452,2]
[353257885,1739719870651,-704.43,0.00011452,2]
[353257886,1739719870661,-500.0,0.00011452,2]
[353257887,1739719870671,-564.7,0.00011452,2]
[353257888,1739719870682,-726.22,0.00011452,2]
[353257889,1739719870692,-1272.36,0.00011452,2]
[353257890,1739719870701,-649.44,0.00011452,2]
[353257891,1739719870713,-709.56,0.00011452,2]
[353257892,1739719870723,-500.0,0.00011452,2]
[353257893,1739719870732,-580.11,0.00011452,2]
[353257894,1739719870742,-1243.11,0.00011452,2]
[353257895,1739719870752,-1320.64,0.00011452,2]
[353257896,1739719870762,-893.54,0.00011452,2]
[353257897,1739719870772,-636.44,0.00011452,2]
[353257898,1739719870782,-500.0,0.00011452,2]
[353257899,1739719870792,-748.46,0.00011452,2]
[353257900,1739719870802,-207.92,0.00011452,2]
[353257901,1739719870812,-740.82,0.00011452,2]
[353257902,1739719870822,-1055.86,0.00011452,2]
[353257903,1739719870832,-1117.63,0.00011452,2]
[353257904,1739719870841,-857.05,0.00011452,2]
[353257905,1739719870851,-2751.0,0.00011507,2]
[353257906,1739719870861,-802.90796683,0.00011529,2]
[353257907,1739719870871,-500.0,0.00011533,2]
[353257908,1739719870881,-500.0,0.00011533,2]
[353257909,1739719870891,-500.0,0.00011533,2]
[353257910,1739719870901,-500.0,0.00011533,2]
[353257911,1739719870911,-500.0,0.00011533,2]
[353257912,1739719870920,-500.0,0.00011533,2]
[353257913,1739719870930,-500.0,0.00011533,2]
[353257914,1739719870939,-175.22446491,0.00011533,2]
[353257915,1739719870948,-500.0,0.00011533,2]
[353257916,1739719870959,-470.040502,0.00011533,2]
[353257917,1739719870968,-500.0,0.00011533,2]
[353257918,1739719870978,-500.0,0.00011533,2]
[353257919,1739719870987,-500.0,0.00011533,2]
[353257920,1739719870997,-500.0,0.00011533,2]
[353257921,1739719871006,-500.0,0.00011533,2]
[353257922,1739719871015,-500.0,0.00011533,2]
[353257923,1739719871025,-500.0,0.00011533,2]
[353257924,1739719871035,-538.44,0.00011533,2]
[353257925,1739719871044,-500.0,0.00011533,2]
[353257926,1739719871053,-500.0,0.00011533,2]
[353257927,1739719871063,-500.0,0.00011533,2]
[353257928,1739719871073,-500.0,0.00011533,2]
[353257929,1739719871091,-1091.82,0.00011533,2]
[353257930,1739719871103,-500.0,0.00011533,2]
[353257931,1739719871112,-1505.24,0.00011533,2]
[353257932,1739719871121,-910.39,0.00011533,2]
[353257933,1739719871131,-1653.06,0.00011533,2]
[353257934,1739719871140,-1341.68,0.00011533,2]
[353257935,1739719871150,-500.0,0.00011533,2]
[353257936,1739719871159,-1590.08,0.00011533,2]
[353257937,1739719871168,-500.0,0.00011533,2]
[353257938,1739719871178,-4185.89,0.00011533,2]
[353257939,1739719871187,-1188.19,0.00011533,2]
[353257940,1739719871197,-520.85,0.00011533,2]
[353257941,1739719871208,-500.0,0.00011533,2]
[353257942,1739719871219,-944.72,0.00011533,2]
[353257943,1739719871228,-500.0,0.00011533,2]
[353257944,1739719871238,-1095.34,0.00011533,2]
[353257945,1739719871247,-1710.67,0.00011533,2]
[353257946,1739719871257,-500.0,0.00011533,2]
[353257947,1739719871267,-500.0,0.00011533,2]
[353257948,1739719871276,-989.2,0.00011533,2]
[353257949,1739719871286,-1445.76,0.00011533,2]
[353257950,1739719871297,-500.0,0.00011533,2]
[353257951,1739719871307,-1428.0,0.00011533,2]
[353257952,1739719871316,-1000.0,0.00011533,2]
[353257953,1739719871325,-1550.81,0.00011533,2]
[353257954,1739719871335,-2083.21,0.00011533,2]
[353257955,1739719871344,-500.0,0.00011533,2]
[353257956,1739719871354,-1852.92,0.00011533,2]
[353257957,1739719871364,-325.04,0.00011533,2]
[353257958,1739719871373,-500.0,0.00011533,2]
[353257959,1739719871383,-500.0,0.00011533,2]
[353257960,1739719871392,-151.0,0.00011534,2]
[353257961,1739719871402,-151.0,0.00011534,2]
[353257962,1739719871411,-500.0,0.00011534,2]
[353257963,1739719871420,-312.14282463,0.00011534,2]
[353257964,1739719871429,-509.66,0.00011534,2]
[353257965,1739719871439,-500.0,0.00011534,2]
[353257966,1739719871459,-500.0,0.00011534,2]
[353257967,1739719871470,-500.0,0.00011534,2]
[353257968,1739719871480,-500.0,0.00011534,2]
[353257969,1739719871490,-500.0,0.00011534,2]
[353257970,1739719871500,-500.0,0.00011534,2]
[353257971,1739719871510,-546.98,0.00011534,2]
[353257972,1739719871521,-778.31,0.00011534,2]
[353257973,1739719871530,-500.0,0.00011534,2]
[353257974,1739719871540,-720.05,0.00011534,2]
[353257975,1739719871550,-500.0,0.00011534,2]
[353257976,1739719871561,-982.93,0.00011534,2]
[353257977,1739719871570,-500.0,0.00011534,2]
[353257978,1739719871580,-610.07,0.00011534,2]
[353257979,1739719871589,-812.65,0.00011534,2]
[353257980,1739719871599,-500.0,0.00011534,2]
[353257981,1739719871609,-500.0,0.00011534,2]
[353257982,1739719871619,-500.0,0.00011534,2]
[353257983,1739719871629,-500.0,0.00011534,2]
[353257984,1739719871639,-500.0,0.00011534,2]
[353257985,1739719871649,-761.58,0.00011534,2]
[353257986,1739719871658,-500.0,0.00011534,2]
[353257987,1739719871668,-527.09,0.00011534,2]
[353257988,1739719871678,-500.0,0.00011534,2]
[353257989,1739719871688,-1082.54,0.00011534,2]
[353257990,1739719871698,-500.0,0.00011534,2]
[353257991,1739719871709,-797.05,0.00011534,2]
[353257992,1739719871719,-500.0,0.00011534,2]
[353257993,1739719871729,-717.56,0.00011534,2]
[353257994,1739719871738,-607.4,0.00011534,2]
[353257995,1739719871748,-500.0,0.00011534,2]
[353257996,1739719871758,-682.32,0.00011534,2]
[353257997,1739719871768,-500.0,0.00011534,2]
[353257998,1739719871778,-1095.09,0.00011534,2]
[353257999,1739719871787,-500.0,0.00011534,2]
[353258000,1739719871797,-500.0,0.00011534,2]
[353258001,1739719871807,-500.0,0.00011534,2]
[353258002,1739719871819,-500.0,0.00011534,2]
[353258003,1739719871833,-500.0,0.00011534,2]
[353258004,1739719871843,-500.0,0.00011534,2]
[353258005,1739719871853,-752.79,0.00011534,2]
[353258006,1739719871863,-693.95,0.00011534,2]
[353258007,1739719871872,-606.73,0.00011534,2]
[353258008,1739719871882,-500.0,0.00011534,2]
[353258009,1739719871892,-624.98,0.00011534,2]
[353258010,1739719871902,-500.0,0.00011534,2]
[353258011,1739719871911,-500.0,0.00011534,2]
[353258012,1739719871922,-500.0,0.00011534,2]
[353258013,1739719871932,-562.44,0.00011534,2]
[353258014,1739719871942,-791.35,0.00011534,2]
[353258015,1739719871951,-1070.44,0.00011534,2]
[353258016,1739719871962,-500.0,0.00011534,2]
[353258017,1739719871971,-887.17,0.00011534,2]
[353258018,1739719871980,-500.0,0.00011534,2]
[353258019,1739719871990,-801.39237,0.00011534,2]
[353258020,1739719871999,-658.15,0.00011534,2]
[353258021,1739719872009,-500.0,0.00011534,2]
[353258022,1739719872018,-526.77340449,0.00011534,2]
[353258023,1739719872027,-500.0,0.00011534,2]
[353258024,1739719872037,-723.28,0.00011534,2]
[353258025,1739719872048,-500.0,0.00011534,2]
[353258026,1739719872058,-615.74,0.00011534,2]
[353258027,1739719872068,-1036.138115,0.00011534,2]
[353258028,1739719872079,-500.0,0.00011534,2]
[353258029,1739719872090,-500.0,0.00011534,2]
[353258030,1739719872101,-500.0,0.00011534,2]
[353258031,1739719872112,-500.0,0.00011534,2]
[353258032,1739719872124,-500.0,0.00011534,2]
[353258033,1739719872135,-500.0,0.00011534,2]
[353258034,1739719872145,-217.10964597,0.00011534,2]
[353258035,1739719872155,-1142.85,0.00011534,2]
[353258036,1739719872165,-500.0,0.00011534,2]
[353258037,1739719872175,-500.0,0.00011534,2]
[353258038,1739719872185,-572.02,0.00011534,2]
[353258039,1739719872196,-500.0,0.00011534,2]
[353258040,1739719872205,-500.0,0.00011534,2]
[353258041,1739719872216,-564.69,0.00011534,2]
[353258042,1739719872228,-551.48,0.00011534,2]
[353258043,1739719872237,-676.69,0.00011534,2]
[353258044,1739719872246,-500.0,0.00011534,2]
[353258045,1739719872256,-615.32,0.00011534,2]
[353258046,1739719872267,-500.0,0.00011534,2]
[353258047,1739719872278,-594.63,0.00011534,2]
[353258048,1739719872287,-647.43,0.00011534,2]
[353258049,1739719872298,-605.03,0.00011534,2]
[353258050,1739719872309,-737.6,0.00011534,2]
[353258051,1739719872319,-500.0,0.00011534,2]
[353258052,1739719872330,-677.67,0.00011534,2]
[353258053,1739719872340,-856.01,0.00011534,2]
[353258054,1739719872349,-580.88,0.00011534,2]
[353258055,1739719872359,-547.28,0.00011534,2]
[353258056,1739719872368,-659.59,0.00011534,2]
[353258057,1739719872377,-500.0,0.00011534,2]
[353258058,1739719872386,-500.0,0.00011534,2]
[353258059,1739719872396,-473.20222442,0.00011534,2]
[353258060,1739719872405,-679.65,0.00011534,2]
[353258061,1739719872414,-635.55,0.00011534,2]
[353258062,1739719872423,-1531.02,0.00011534,2]
[353258063,1739719872432,-500.0,0.00011534,2]
[353258064,1739719872442,-500.0,0.00011534,2]
[353258065,1739719872452,-710.02,0.00011534,2]
[353258066,1739719872462,-552.24,0.00011534,2]
[353258067,1739719872471,-609.92,0.00011534,2]
[353258068,1739719872481,-775.33,0.00011534,2]
[353258069,1739719872490,-927.32,0.00011534,2]
[353258070,1739719872499,-833.8,0.00011534,2]
[353258071,1739719872508,-713.28,0.00011534,2]
[353258072,1739719872518,-2162.44,0.00011534,2]
[353258073,1739719872527,-500.0,0.00011534,2]
[353258074,1739719872536,-661.28,0.00011534,2]
[353258075,1739719872546,-763.65,0.00011534,2]
[353258076,1739719872555,-500.0,0.00011534,2]
[353258077,1739719872564,-696.46,0.00011534,2]
[353258078,1739719872574,-500.0,0.00011534,2]
[353258079,1739719872583,-500.0,0.00011534,2]
[353258080,1739719872592,-1016.22,0.00011534,2]
[353258081,1739719872601,-840.07,0.00011534,2]
[353258082,1739719872611,-500.0,0.00011534,2]
[353258083,1739719872620,-997.87,0.00011534,2]
[353258084,1739719872630,-1941.86,0.00011534,2]
[353258085,1739719872639,-500.0,0.00011534,2]
[353258086,1739719872648,-500.0,0.00011534,2]
[353258087,1739719872658,-960.55,0.00011534,2]
[353258088,1739719872667,-500.0,0.00011534,2]
[353258089,1739719872676,-1316.29,0.00011534,2]
[353258090,1739719872686,-628.04,0.00011534,2]
[353258091,1739719872695,-967.16,0.00011534,2]
[353258092,1739719872705,-1082.77,0.00011534,2]
[353258093,1739719872714,-537.42,0.00011534,2]
[353258094,1739719872724,-1148.65,0.00011534,2]
[353258095,1739719872734,-522.8,0.00011534,2]
[353258096,1739719872744,-500.0,0.00011534,2]
[353258097,1739719872754,-1133.71,0.00011534,2]
[353258098,1739719872763,-500.0,0.00011534,2]
[353258099,1739719872773,-1545.2,0.00011534,2]
[353258100,1739719872854,-1208.7,0.00011534,2]
[353258101,1739719872864,-3059.32,0.00011534,2]
[353258102,1739719872874,-500.0,0.00011534,2]
[353258103,1739719872883,-575.61,0.00011534,2]
[353258104,1739719872893,-1330.36,0.00011534,2]
[353258105,1739719872902,-1260.47,0.00011534,2]
[353258106,1739719872912,-657.52,0.00011534,2]
[353258107,1739719872922,-656.43,0.00011534,2]
[353258108,1739719872932,-533.75,0.00011534,2]
[353258109,1739719872941,-1280.71,0.00011534,2]
[353258110,1739719872950,-500.0,0.00011534,2]
[353258111,1739719872960,-1667.11,0.00011534,2]
[353258112,1739719872969,-1761.78,0.00011534,2]
[353258113,1739719872979,-655.49,0.00011534,2]
[353258114,1739719872989,-765.75,0.00011534,2]
[353258115,1739719872999,-954.99,0.00011534,2]
[353258116,1739719873009,-510.92,0.00011534,2]
[353258117,1739719873019,-1071.72,0.00011534,2]
[353258118,1739719873028,-898.62,0.00011534,2]
[353258119,1739719873038,-963.74,0.00011534,2]
[353258120,1739719873048,-500.0,0.00011534,2]
[353258121,1739719873057,-1432.53,0.00011534,2]
[353258122,1739719873067,-1288.05,0.00011534,2]
[353258123,1739719873076,-1131.27,0.00011534,2]
[353258124,1739719873086,-1497.56,0.00011534,2]
[353258125,1739719873096,-938.67,0.00011534,2]
[353258126,1739719873106,-922.59,0.00011534,2]
[353258127,1739719873116,-1297.94,0.00011534,2]
[353258128,1739719873127,-1275.03,0.00011534,2]
[353258129,1739719873137,-1207.44,0.00011534,2]
[353258130,1739719873147,-857.03,0.00011534,2]
[353258131,1739719873156,-1139.27,0.00011534,2]
[353258132,1739719873166,-2609.71,0.00011534,2]
[353258133,1739719873177,-2357.36,0.00011534,2]
[353258134,1739719873186,-948.68,0.00011534,2]
[353258135,1739719873195,-745.27,0.00011534,2]
[353258136,1739719873207,-1322.5,0.00011534,2]
[353258137,1739719873219,-1014.65,0.00011534,2]
[353258138,1739719873227,-732.97,0.00011534,2]
[353258139,1739719873236,-3965.85,0.00011534,2]
[353258140,1739719873246,-1054.68,0.00011534,2]
[353258141,1739719873257,-1029.25,0.00011534,2]
[353258142,1739719873266,-647.83,0.00011534,2]
[353258143,1739719873275,-1129.52,0.00011534,2]
[353258144,1739719873284,-500.0,0.00011534,2]
[353258145,1739719873294,-1589.44,0.00011534,2]
[353258146,1739719873304,-856.52,0.00011534,2]
[353258147,1739719873314,-1397.84,0.00011534,2]
[353258148,1739719873323,-2006.41,0.00011534,2]
[353258149,1739719873332,-1495.83,0.00011534,2]
[353258150,1739719873342,-2283.55,0.00011534,2]
[353258151,1739719873353,-1573.52,0.00011534,2]
[353258152,1739719873363,-950.54,0.00011534,2]
[353258153,1739719873372,-1359.93,0.00011534,2]
[353258154,1739719873381,-629.85,0.00011534,2]
[353258155,1739719873391,-500.0,0.00011534,2]
[353258156,1739719873399,-1723.99,0.00011534,2]
[353258157,1739719873408,-937.03,0.00011534,2]
[353258158,1739719873418,-1047.35,0.00011534,2]
[353258159,1739719873429,-835.09,0.00011534,2]
[353258160,1739719873439,-989.7,0.00011534,2]
[353258161,1739719873448,-1680.52,0.00011534,2]
[353258162,1739719873457,-502.61,0.00011534,2]
[353258163,1739719873466,-685.52,0.00011534,2]
[353258164,1739719873475,-1596.94,0.00011534,2]
[353258165,1739719873485,-2108.61,0.00011534,2]
[353258166,1739719873494,-500.0,0.00011534,2]
[353258167,1739719873504,-1064.74,0.00011534,2]
[353258168,1739719873512,-500.0,0.00011534,2]
[353258169,1739719873521,-704.43,0.00011534,2]
[353258170,1739719873531,-500.0,0.00011534,2]
[353258171,1739719873540,-564.7,0.00011534,2]
[353258172,1739719873549,-726.22,0.00011534,2]
[353258173,1739719873558,-1272.36,0.00011534,2]
[353258174,1739719873568,-709.56,0.00011534,2]
[353258175,1739719873578,-500.0,0.00011534,2]
[353258176,1739719873587,-580.11,0.00011534,2]
[353258177,1739719873596,-1243.11,0.00011534,2]
[353258178,1739719873606,-1320.64,0.00011534,2]
[353258179,1739719873615,-893.54,0.00011534,2]
[353258180,1739719873624,-636.44,0.00011534,2]
[353258181,1739719873634,-500.0,0.00011534,2]
[353258182,1739719873643,-748.46,0.00011534,2]
[353258183,1739719873652,-740.82,0.00011534,2]
[353258184,1739719873662,-1055.86,0.00011534,2]
[353258185,1739719873671,-1117.63,0.00011534,2]
[353258186,1739719873680,-857.05,0.00011534,2]
[353258187,1739719873689,-1131.68865561,0.00011544,2]
[353258188,1739719873699,-500.0,0.0001156,2]
[353258189,1739719873709,-216.97517832,0.00011616,2]
[353258190,1739719873718,-509.66,0.00011616,2]
[353258191,1739719873727,-500.0,0.00011616,2]
[353258192,1739719873736,-500.0,0.00011616,2]
[353258193,1739719873746,-642.36380954,0.00011616,2]
[353258194,1739719873755,-500.0,0.00011616,2]
[353258195,1739719873764,-500.0,0.00011616,2]
[353258196,1739719873773,-500.0,0.00011616,2]
[353258197,1739719873783,-500.0,0.00011616,2]
[353258198,1739719873792,-500.0,0.00011616,2]
[353258199,1739719873801,-500.0,0.00011616,2]
[353258200,1739719873810,-500.0,0.00011616,2]
[353258201,1739719873820,-546.98,0.00011616,2]
[353258202,1739719873829,-778.31,0.00011616,2]
[353258203,1739719873838,-309.34,0.00011616,2]
[353258204,1739719873847,-720.05,0.00011616,2]
[353258205,1739719873857,-293.01240991,0.00011616,2]
[353258206,1739719873866,-500.0,0.00011616,2]
[353258207,1739719873875,-982.93,0.00011616,2]
[353258208,1739719873884,-500.0,0.00011616,2]
[353258209,1739719873894,-610.07,0.00011616,2]
[353258210,1739719873903,-500.0,0.00011616,2]
[353258211,1739719873913,-812.65,0.00011616,2]
[353258212,1739719873923,-500.0,0.00011616,2]
[353258213,1739719873932,-500.0,0.00011616,2]
[353258214,1739719873942,-500.0,0.00011616,2]
[353258215,1739719873952,-500.0,0.00011616,2]
[353258216,1739719873963,-500.0,0.00011616,2]
[353258217,1739719873972,-500.0,0.00011616,2]
[353258218,1739719873981,-761.58,0.00011616,2]
[353258219,1739719873991,-154.61849914,0.00011616,2]
[353258220,1739719873999,-527.09,0.00011616,2]
[353258221,1739719874009,-500.0,0.00011616,2]
[353258222,1739719874018,-1082.54,0.00011616,2]
[353258223,1739719874028,-500.0,0.00011616,2]
[353258224,1739719874037,-797.05,0.00011616,2]
[353258225,1739719874046,-240.22884376,0.00011616,2]
[353258226,1739719874056,-717.56,0.00011616,2]
[353258227,1739719874066,-607.4,0.00011616,2]
[353258228,1739719874075,-500.0,0.00011616,2]
[353258229,1739719874084,-682.32,0.00011616,2]
[353258230,1739719874094,-500.0,0.00011616,2]
[353258231,1739719874103,-1095.09,0.00011616,2]